bitfinex-derivatives/quotes_SOLF0:USTF0_20260118
["timestamp","ask_amount","ask_price","bid_price","bid_amount"]
[1768746497284,3.07406128,142.49,142.43,3.04395167]
[1768746497484,5.20819176,142.48,142.43,3.04395167]
[1768746497676,5.20819176,142.47,142.43,3.04395167]
[1768746497877,3.07406128,142.49,142.43,3.04395167]
[1768746498078,8.282257,142.48,142.43,3.04395167]
[1768746498381,5.20819572,142.47,142.43,3.04395167]
[1768746498583,3.07406128,142.48,142.43,3.04395167]
[1768746498784,3.07406128,142.5,142.43,3.04395167]
[1768746499086,5.20762131,142.49,142.43,3.04395167]
[1768746499378,3.07406128,142.5,142.43,3.03858359]
[1768746499586,5.20604785,142.49,142.43,3.03858359]
[1768746499886,3.07406128,142.5,142.43,3.03858359]
[1768746500184,5.20604785,142.49,142.43,3.03858359]
[1768746500384,3.07406128,142.5,142.45,0.05391693]
[1768746500584,5.20508928,142.49,142.45,0.05391693]
[1768746500786,3.07406128,142.5,142.45,0.05391693]
[1768746500986,5.20508928,142.49,142.45,0.05391693]
[1768746501188,3.07406128,142.5,142.45,0.05391693]
[1768746501390,5.20427197,142.49,142.45,0.05391693]
[1768746501583,3.07406128,142.5,142.45,0.05391693]
[1768746501783,5.25815946,142.49,142.45,0.05391693]
[1768746501986,0.05388749,142.49,142.45,0.05391693]
[1768746530021,0.05388749,142.49,142.45,3.16568181]
[1768746540033,3.12648749,142.49,142.45,0.05391693]
[1768746557252,8.28863472,142.48,142.45,0.05391693]
[1768746557452,3.0726,142.48,142.45,0.05391693]
[1768746567966,3.0726,142.48,142.42,3.33911253]
[1768746568260,8.28708739,142.47,142.42,3.33911253]
[1768746568468,3.07078019,142.47,142.38,3.1284852]
[1768746569363,0.04976926,142.44,142.38,3.1284852]
[1768746582379,3.07692507,142.51,142.38,3.1284852]
[1768746582580,3.07692507,142.49,142.38,3.1284852]
[1768746582772,8.29391829,142.48,142.38,3.1284852]
[1768746582973,3.07692507,142.48,142.38,3.1284852]
[1768746586784,3.07692507,142.48,142.41,4.84089929]
[1768746589384,3.07692507,142.48,142.41,3.0740072]
[1768746589586,3.07692507,142.48,142.41,4.84089929]
[1768746596485,3.07692507,142.48,142.42,3.33131917]
[1768746599292,3.12116879,142.5,142.43,5.09821126]
[1768746599484,5.21898363,142.49,142.43,5.09821126]
[1768746599685,3.12116879,142.5,142.43,5.09821126]
[1768746599885,5.21897513,142.49,142.43,5.09821126]
[1768746600090,3.12116879,142.5,142.43,5.09821126]
[1768746600286,5.21924498,142.49,142.45,0.04855852]
[1768746600588,3.12116879,142.52,142.45,5.14676978]
[1768746600785,5.21889737,142.51,142.45,5.14676978]
[1768746600984,3.12116879,142.52,142.45,5.09821126]
[1768746601184,8.34006389,142.51,142.45,5.09821126]
[1768746601391,3.12116879,142.51,142.47,0.04965217]
[1768746602190,0.04843584,142.5,142.47,0.04965217]
[1768746607990,0.04843584,142.5,142.47,3.38097134]
[1768746610404,3.12116879,142.53,142.47,3.38097134]
[1768746610694,5.20507579,142.52,142.47,3.38097134]
[1768746610999,3.12116879,142.53,142.47,3.38097134]
[1768746611297,5.20507579,142.52,142.47,3.38097134]
[1768746611486,3.12116879,142.53,142.47,3.38097134]
[1768746612894,1.76689209,142.54,142.47,3.38097134]
[1768746613100,3.12116879,142.55,142.47,3.38097134]
[1768746613299,4.88806088,142.55,142.47,3.38097134]
[1768746614097,3.12116879,142.54,142.47,3.38097134]
[1768746614590,3.12116879,142.54,142.47,3.33131917]
[1768746614995,3.12116879,142.54,142.49,0.05036254]
[1768746617097,4.88806088,142.54,142.49,0.05036254]
[1768746617693,241.72088583,142.58,142.49,3.38168171]
[1768746617898,3.12116879,142.57,142.51,3.33131917]
[1768746618600,0.05132667,142.55,142.53,0.05279331]
[1768746619094,0.05132667,142.55,142.53,0.00435747]
[1768746625000,1.81821876,142.55,142.53,0.00435747]
[1768746628398,0.05132667,142.55,142.53,0.00435747]
[1768746629605,3.17158363,142.55,142.53,0.00435747]
[1768746630498,4.93847572,142.55,142.53,0.00435747]
[1768746630803,1.81821876,142.55,142.53,0.00435747]
[1768746633605,0.05132667,142.55,142.53,0.00435747]
[1768746633802,3.17158363,142.62,142.54,3.05505688]
[1768746634005,263.02,142.63,142.54,3.05505688]
[1768746634006,3.17158363,142.6,142.54,3.05505688]
[1768746634208,1.76689209,142.59,142.54,3.05505688]
[1768746634509,4.93847572,142.59,142.54,3.05505688]
[1768746634902,4.93847572,142.59,142.52,3.05505688]
[1768746635103,4.93847572,142.59,142.55,0.04728985]
[1768746637610,3.17158363,142.59,142.55,0.04728985]
[1768746637811,4.93847572,142.59,142.55,0.04728985]
[1768746639213,3.17158363,142.59,142.55,0.04728985]
[1768746639716,4.93847572,142.59,142.55,0.04728985]
[1768746639916,1.76689209,142.58,142.55,0.04728985]
[1768746640307,3.17158363,142.59,142.55,0.04728985]
[1768746640506,1.76689209,142.58,142.55,0.04728985]
[1768746641411,1.81174814,142.58,142.55,0.04728985]
[1768746642114,4.98388502,142.58,142.55,0.04728985]
[1768746642914,4.98144916,142.58,142.55,0.04728985]
[1768746645211,3.21699293,142.58,142.55,0.04728985]
[1768746645612,4.98144916,142.58,142.55,0.04728985]
[1768746647010,3.17213688,142.57,142.55,0.04728985]
[1768746647621,4.93659311,142.57,142.55,0.04728985]
[1768746647915,4.93659311,142.57,142.51,3.27285691]
[1768746649320,4.93659311,142.57,142.53,0.04836125]
[1768746663738,3.17213688,142.57,142.53,0.04836125]
[1768746664143,3.01479437,142.64,142.55,1.76445623]
[1768746664330,3.01479437,142.64,142.56,3.11457074]
[1768746664836,1.76445623,142.63,142.56,3.11457074]
[1768746665031,4.7792506,142.63,142.56,3.11457074]
[1768746665436,3.01479437,142.62,142.56,3.11457074]
[1768746665745,4.7792506,142.61,142.58,0.05209561]
[1768746666245,3.01479437,142.61,142.56,3.11457074]
[1768746666541,3.01479437,142.61,142.58,0.04509623]
[1768746669835,3.01479437,142.61,142.54,4.87902697]
[1768746670042,3.01479437,142.61,142.56,1.76445623]
[1768746670744,3.01479437,142.61,142.54,3.11457074]
[1768746670939,3.01479437,142.61,142.56,1.76445623]
[1768746672143,3.01479437,142.59,142.53,163.65517455]
[1768746672447,3.01479437,142.59,142.55,1.76445623]
[1768746673148,3.01479437,142.59,142.53,166.76974529]
[1768746673442,3.01479437,142.59,142.55,1.76445623]
[1768746675043,0.04511306,142.6,142.55,1.76445623]
[1768746676645,0.04511306,142.6,142.54,1.76445623]
[1768746676946,0.15521469,142.6,142.54,1.76445623]
[1768746677139,0.15521469,142.6,142.54,4.87902697]
[1768746678147,0.15521469,142.6,142.54,3.11457074]
[1768746678549,0.15521469,142.6,142.54,4.87902697]
[1768746678942,0.11010163,142.59,142.53,163.65517455]
[1768746679147,0.11010163,142.59,142.52,4.87902697]
[1768746679644,0.11010163,142.59,142.53,3.11457074]
[1768746680040,0.04534073,142.57,142.53,3.11457074]
[1768746680738,0.04534073,142.57,142.53,4.87902697]
[1768746681145,0.04534073,142.57,142.53,3.11457074]
[1768746681345,0.04534073,142.57,142.53,4.87902697]
[1768746682949,0.04534073,142.57,142.53,3.11457074]
[1768746683446,0.04534073,142.57,142.52,4.92855598]
[1768746684357,0.04534073,142.57,142.53,3.16409975]
[1768746689758,0.15461751,142.57,142.51,3.16409975]
[1768746689952,0.15461751,142.57,142.54,0.05097539]
[1768746690256,0.10927678,142.57,142.54,0.05097539]
[1768746690760,0.1539133,142.57,142.54,0.05097539]
[1768746691252,0.10927678,142.56,142.46,3.16409975]
[1768746691450,0.10927678,142.56,142.49,4.92855598]
[1768746692555,0.04717161,142.54,142.49,3.16409975]
[1768746692756,0.04717161,142.54,142.49,4.92855598]
[1768746693556,0.04717161,142.54,142.5,3.16409975]
[1768746704053,0.04717161,142.54,142.48,1.76523316]
[1768746704252,0.04717161,142.54,142.49,3.19147811]
[1768746704561,0.11127425,142.55,142.49,3.19147811]
[1768746704960,0.05357345,142.53,142.49,3.19147811]
[1768746729184,0.11160102,142.56,142.49,3.19147811]
[1768746730588,0.04882324,142.54,142.49,3.19147811]
[1768746732486,6.52819771,142.59,142.49,3.19147811]
[1768746732687,1.76523316,142.59,142.51,3.17476324]
[1768746733894,0.21399771,142.6,142.51,3.17476324]
[1768746734089,1.76523316,142.58,142.51,3.17476324]
[1768746740499,1.97923087,142.58,142.51,3.17476324]
[1768746740903,1.81594434,142.56,142.53,0.04835456]
[1768746761715,0.05071118,142.56,142.53,0.04835456]
[1768746761917,1.81594434,142.56,142.53,0.04835456]
[1768746765015,0.05071118,142.56,142.53,0.04835456]
[1768746771723,0.26299482,142.56,142.53,0.04835456]
[1768746771913,0.05071118,142.56,142.53,0.04835456]
[1768746775221,1.76500716,142.57,142.53,0.04835456]
[1768746775520,1.9775757,142.57,142.53,0.04835456]
[1768746777326,5.20845633,142.56,142.53,0.04835456]
[1768746777519,1.9775757,142.57,142.53,0.04835456]
[1768746777720,5.20845633,142.56,142.53,0.04835456]
[1768746777922,1.9775757,142.57,142.53,0.04835456]
[1768746778221,5.20845633,142.56,142.53,0.04835456]
[1768746778415,1.9775757,142.57,142.53,0.04835456]
[1768746778611,5.20850855,142.56,142.53,0.04835456]
[1768746778812,1.9775757,142.57,142.53,0.04835456]
[1768746779017,5.20850855,142.56,142.53,0.04835456]
[1768746779212,1.9775757,142.57,142.53,0.04835456]
[1768746779423,5.2085086,142.56,142.53,0.04835456]
[1768746779622,1.9775757,142.57,142.53,0.04835456]
[1768746779830,5.20869281,142.56,142.53,0.04835456]
[1768746780017,1.9775757,142.57,142.53,0.04835456]
[1768746780217,5.20869281,142.56,142.53,0.04835456]
[1768746780417,1.9775757,142.57,142.53,0.04835456]
[1768746780614,5.20886565,142.56,142.53,0.04835456]
[1768746780820,1.9775757,142.57,142.53,0.04835456]
[1768746781018,5.20886565,142.56,142.53,0.04835456]
[1768746781217,1.9775757,142.57,142.53,0.04835456]
[1768746781422,5.20909988,142.56,142.53,0.04835456]
[1768746781625,1.9775757,142.57,142.53,0.04835456]
[1768746781827,5.20909988,142.56,142.53,0.04835456]
[1768746782026,1.9775757,142.57,142.53,0.04835456]
[1768746782224,5.20909988,142.56,142.53,0.04835456]
[1768746782428,1.9775757,142.57,142.53,0.04835456]
[1768746782725,5.20836784,142.56,142.53,0.04835456]
[1768746782928,1.9775757,142.57,142.53,0.04835456]
[1768746783127,5.20836784,142.56,142.53,0.04835456]
[1768746783327,1.9775757,142.57,142.53,0.04835456]
[1768746783627,5.20842963,142.56,142.53,0.04835456]
[1768746783928,1.9775757,142.57,142.53,0.04835456]
[1768746784120,5.20842963,142.56,142.53,0.04835456]
[1768746784321,1.9775757,142.57,142.53,0.04835456]
[1768746784523,5.20872416,142.56,142.53,0.04835456]
[1768746784730,1.9775757,142.57,142.53,0.04835456]
[1768746785028,5.20872416,142.56,142.53,0.04835456]
[1768746785226,0.21256854,142.57,142.53,0.04835456]
[1768746785416,5.20880475,142.56,142.53,0.04835456]
[1768746785616,0.21256854,142.57,142.53,0.04835456]
[1768746785929,5.20880475,142.56,142.53,0.04835456]
[1768746786129,0.21256854,142.57,142.53,0.04835456]
[1768746786436,5.20881163,142.56,142.53,0.04835456]
[1768746786628,0.21256854,142.57,142.53,0.04835456]
[1768746786830,5.20882045,142.56,142.53,0.04835456]
[1768746787129,0.21256854,142.57,142.53,0.04835456]
[1768746787330,5.20881518,142.56,142.53,0.04835456]
[1768746787523,0.21256854,142.57,142.53,0.04835456]
[1768746787723,5.20882772,142.56,142.53,0.04835456]
[1768746787923,0.21256854,142.57,142.53,0.04835456]
[1768746788232,5.2088278,142.56,142.53,0.04835456]
[1768746788421,0.21256854,142.57,142.53,0.04835456]
[1768746788626,5.20884114,142.56,142.53,0.04835456]
[1768746788931,0.21256854,142.57,142.53,0.04835456]
[1768746789125,5.20884114,142.56,142.53,0.04835456]
[1768746789324,0.21256854,142.57,142.53,0.04835456]
[1768746789524,5.20886048,142.56,142.53,0.04835456]
[1768746789832,1.9775757,142.58,142.53,0.04835456]
[1768746790033,5.20885204,142.57,142.53,0.04835456]
[1768746790236,5.20885204,142.56,142.53,0.04835456]
[1768746790531,1.9775757,142.59,142.53,3.26329175]
[1768746790832,5.20872544,142.58,142.53,3.26329175]
[1768746791028,1.9775757,142.59,142.53,3.26329175]
[1768746791232,5.20835046,142.58,142.53,3.26329175]
[1768746791430,1.9775757,142.59,142.53,3.26329175]
[1768746791629,5.20660907,142.58,142.53,3.26329175]
[1768746791825,1.9775757,142.59,142.53,3.26329175]
[1768746792025,5.20679734,142.58,142.53,3.26329175]
[1768746792225,1.9775757,142.59,142.53,3.26329175]
[1768746792432,5.20608568,142.58,142.53,3.26329175]
[1768746792729,1.9775757,142.59,142.53,3.26329175]
[1768746792936,5.2059856,142.58,142.53,3.26329175]
[1768746793130,1.9775757,142.59,142.53,3.26329175]
[1768746793332,5.20541813,142.58,142.53,3.26329175]
[1768746793533,1.9775757,142.59,142.53,3.26329175]
[1768746793831,5.20540153,142.58,142.53,3.26329175]
[1768746794136,1.9775757,142.59,142.53,3.26329175]
[1768746794433,5.20498132,142.58,142.53,3.26329175]
[1768746794635,1.9775757,142.59,142.53,3.26329175]
[1768746794834,5.20496455,142.58,142.53,3.26329175]
[1768746795031,1.9775757,142.59,142.53,3.26329175]
[1768746795234,5.20496455,142.58,142.53,3.26329175]
[1768746795433,1.9775757,142.59,142.53,3.26329175]
[1768746795632,5.20450484,142.58,142.53,3.26329175]
[1768746795838,0.21256854,142.59,142.53,3.26329175]
[1768746796040,1.9775757,142.59,142.53,3.26329175]
[1768746803840,0.21256854,142.59,142.53,3.26329175]
[1768746807946,1.76500716,142.6,142.53,3.26329175]
[1768746808448,1.76500716,142.6,142.53,3.21493719]
[1768746808747,1.76500716,142.6,142.55,3.32806427]
[1768746810141,0.21178322,142.61,142.55,3.32806427]
[1768746810656,1.76500716,142.62,142.55,3.32806427]
[1768746812154,1.76500716,142.62,142.56,3.2829504]
[1768746814755,0.21178322,142.64,142.56,3.2829504]
[1768746815058,0.21178322,142.61,142.56,3.2829504]
[1768746815252,1.76500716,142.6,142.56,3.2829504]
[1768746815560,1.97679038,142.6,142.57,0.04623408]
[1768746815955,0.21178322,142.59,142.54,3.2829504]
[1768746816458,0.21178322,142.59,142.57,0.04865379]
[1768746822565,0.25846119,142.59,142.54,3.2829504]
[1768746822768,2.02346835,142.59,142.54,3.2829504]
[1768746823868,2.02346835,142.59,142.55,0.04462704]
[1768746824963,2.02290833,142.59,142.55,0.04462704]
[1768746827674,0.25846119,142.59,142.55,0.04462704]
[1768746827874,2.02290833,142.59,142.55,0.04462704]
[1768746829675,0.25846119,142.59,142.55,0.04462704]
[1768746829878,2.02290833,142.59,142.55,0.04462704]
[1768746837077,0.21276508,142.58,142.55,0.04462704]
[1768746837977,1.97721222,142.57,142.52,3.22173815]
[1768746839174,0.04653448,142.56,142.52,3.22173815]
[1768746839379,1.97721222,142.57,142.52,3.22173815]
[1768746839683,1.97721222,142.57,142.53,0.04644525]
[1768746841980,0.21276508,142.57,142.53,0.04644525]
[1768746844980,1.97721222,142.59,142.53,0.04644525]
[1768746845380,0.21276508,142.58,142.53,0.04644525]
[1768746875220,5.21141426,142.57,142.53,0.04644525]
[1768746875407,0.21276508,142.58,142.53,0.04644525]
[1768746875707,5.21145387,142.57,142.53,0.04644525]
[1768746876002,0.21276508,142.58,142.53,0.04644525]
[1768746876208,5.21145387,142.57,142.53,0.04644525]
[1768746876506,0.21276508,142.58,142.53,0.04644525]
[1768746876707,5.21170904,142.57,142.53,0.04644525]
[1768746876908,0.21276508,142.58,142.53,0.04644525]
[1768746877207,5.21170904,142.57,142.53,0.04644525]
[1768746877410,0.21276508,142.58,142.53,0.04644525]
[1768746903331,0.21246304,142.61,142.53,3.12665876]
[1768746903518,0.21246304,142.61,142.54,1.76452224]
[1768746903720,0.21246304,142.61,142.55,3.08021351]
[1768746903927,235.86913022,142.63,142.56,4.84473575]
[1768746904130,235.86913022,142.63,142.57,3.08021351]
[1768746904932,0.21246304,142.63,142.57,3.08021351]
[1768746906328,1.97698528,142.63,142.57,3.08021351]
[1768746910332,0.21246304,142.63,142.57,3.08021351]
[1768746912122,1.76452224,142.64,142.57,3.08021351]
[1768746912831,1.97698528,142.64,142.57,3.08021351]
[1768746913026,1.97698528,142.64,142.59,0.05251773]
[1768746916436,0.21246304,142.61,142.59,0.05251773]
[1768746916938,0.21246304,142.61,142.55,3.08021351]
[1768746917236,0.21246304,142.61,142.59,0.05017274]
[1768746917432,0.21246304,142.61,142.55,3.08021351]
[1768746917636,0.05209985,142.59,142.55,3.08021351]
[1768746926440,2.02759739,142.59,142.53,3.32039591]
[1768746927846,1.76452224,142.57,142.53,3.32039591]
[1768746933446,1.76452224,142.58,142.53,3.32039591]
[1768746943661,1.76452224,142.56,142.48,3.32442603]
[1768746944158,1.97644695,142.59,142.51,1.76452224]
[1768746944358,1.76452224,142.59,142.52,3.32442603]
[1768746945857,1.76452224,142.59,142.54,0.04531715]
[1768746946854,1.76434714,142.59,142.54,0.04531715]
[1768746947251,1.76434714,142.59,142.54,3.36974318]
[1768746950960,1.97627185,142.6,142.54,3.36974318]
[1768746959462,0.21192471,142.6,142.54,3.36974318]
[1768746959667,1.97627185,142.6,142.54,3.36974318]
[1768746967166,0.21256631,142.59,142.54,3.36974318]
[1768746970666,1.76434714,142.58,142.54,3.36974318]
[1768746972570,1.76434714,142.58,142.54,0.04531715]
[1768746974476,0.21256631,142.59,142.54,0.04531715]
[1768746974674,1.76434714,142.58,142.54,0.04531715]
[1768746979181,1.97691345,142.56,142.5,3.0127323]
[1768746980681,0.04985171,142.54,142.5,3.0127323]
[1768746997899,0.04985171,142.54,142.5,4.77707944]
[1768746998086,0.21092364,142.58,142.5,4.77707944]
[1768746998087,0.21092364,142.58,142.51,3.2322244]
[1768746998291,0.21092364,142.58,142.51,3.27821588]
[1768747006001,6.52542364,142.58,142.51,3.27821588]
[1768747011708,0.21092364,142.55,142.51,0.04599148]
[1768747027906,1.97576922,142.55,142.51,0.04599148]
[1768747028113,1.97576922,142.55,142.49,3.2322244]
[1768747028114,0.259909,142.54,142.49,3.2322244]
[1768747030315,0.259909,142.54,142.47,171.22213794]
[1768747030915,0.21163072,142.53,142.47,3.10117642]
[1768747035827,0.21163072,142.53,142.47,3.05045202]
[1768747040736,0.21163072,142.53,142.49,0.04832606]
[1768747041135,2.0272007,142.52,142.49,0.04832606]
[1768747042936,0.26235512,142.52,142.49,0.04832606]
[1768747050942,6.57965512,142.52,142.39,3.02215571]
[1768747051248,0.26306594,142.51,142.44,3.02215571]
[1768747052242,0.05200675,142.49,142.44,3.02215571]
[1768747063952,1.81685233,142.49,142.44,3.02215571]
[1768747064752,0.05200675,142.49,142.44,3.02215571]
[1768747064947,1.81685233,142.49,142.44,3.02215571]
[1768747068843,1.76705466,142.48,142.44,3.02215571]
[1768747072249,1.76705466,142.47,142.44,3.02215571]
[1768747077254,1.76705466,142.47,142.38,3.15845199]
[1768747077255,2.03056867,142.47,142.38,3.15845199]
[1768747077454,1.76705466,142.45,142.38,3.15845199]
[1768747079450,0.04438391,142.43,142.38,3.15845199]
[1768747079755,6.3199,142.46,142.38,3.15845199]
[1768747079955,8.08695466,142.46,142.38,3.15845199]
[1768747080859,8.08695466,142.46,142.41,0.05189549]
[1768747081059,8.08695466,142.46,142.41,3.21034748]
[1768747081558,6.3199,142.46,142.41,3.21034748]
[1768747081851,1.76705466,142.45,142.41,3.21034748]
[1768747089769,0.35820777,142.46,142.41,3.21034748]
[1768747089962,1.76705466,142.45,142.41,3.21034748]
[1768747090655,0.35820777,142.46,142.41,3.21034748]
[1768747090861,1.76705466,142.45,142.41,3.21034748]
[1768747091558,0.35820777,142.46,142.41,3.21034748]
[1768747091754,1.76705466,142.45,142.41,3.21034748]
[1768747092163,0.35820777,142.46,142.41,3.21034748]
[1768747092366,1.76705466,142.45,142.41,3.21034748]
[1768747093570,0.35820777,142.46,142.41,3.21034748]
[1768747093772,1.76705466,142.44,142.41,3.21034748]
[1768747095170,1.76705466,142.45,142.41,3.21034748]
[1768747110579,0.35881751,142.44,142.41,0.05189549]
[1768747110777,1.76705466,142.43,142.39,3.11459178]
[1768747113082,0.04781094,142.44,142.39,3.11459178]
[1768747113277,1.76705466,142.43,142.39,3.11459178]
[1768747115191,0.04781094,142.44,142.39,3.11459178]
[1768747115388,5.19931185,142.43,142.39,3.11459178]
[1768747115590,1.8148656,142.44,142.39,3.11459178]
[1768747115783,5.19904549,142.43,142.39,3.11459178]
[1768747115983,1.8148656,142.44,142.39,3.11459178]
[1768747116183,5.19904549,142.43,142.39,3.11459178]
[1768747116383,1.8148656,142.44,142.39,3.11459178]
[1768747116688,5.19945795,142.43,142.39,3.11459178]
[1768747116890,1.8148656,142.44,142.39,3.11459178]
[1768747117089,5.19945795,142.43,142.39,3.11459178]
[1768747117283,6.96687229,142.42,142.34,3.11553758]
[1768747117490,1.76705466,142.42,142.34,3.11553758]
[1768747117794,2.12660518,142.42,142.34,3.11553758]
[1768747118200,0.0451215,142.39,142.34,3.11553758]
[1768747118497,2.12660518,142.42,142.34,3.11553758]
[1768747118694,2.12660518,142.42,142.37,3.16944586]
[1768747121401,0.40467202,142.41,142.35,3.11553758]
[1768747121606,1.76705466,142.39,142.35,3.11553758]
[1768747121904,5.60372713,142.4,142.35,3.11553758]
[1768747121905,2.17172668,142.4,142.35,3.11553758]
[1768747122991,1.76705466,142.38,142.32,3.11553758]
[1768747123893,0.05214536,142.36,142.32,3.11553758]
[1768747126104,0.40467202,142.41,142.33,3.11553758]
[1768747126398,2.17172668,142.41,142.33,3.16124951]
[1768747127201,0.45681738,142.4,142.33,3.16124951]
[1768747127402,1.76705466,142.38,142.33,3.16124951]
[1768747127702,1.76705466,142.39,142.33,3.16124951]
[1768747127907,2.22387204,142.4,142.33,3.16124951]
[1768747128915,0.0510015,142.38,142.33,3.16124951]
[1768747137323,2.22887595,142.35,142.3,3.16434509]
[1768747137525,0.45956724,142.35,142.3,3.16434509]
[1768747138617,0.04640805,142.34,142.3,3.16434509]
[1768747140318,0.04640805,142.34,142.22,3.16434509]
[1768747140319,0.45956724,142.33,142.22,3.16434509]
[1768747140732,21.10640805,142.34,142.25,3.16434509]
[1768747141026,0.45956724,142.34,142.28,3.16434509]
[1768747141427,2.28198686,142.36,142.28,3.16434509]
[1768747141633,2.28198686,142.36,142.3,0.04899111]
[1768747141932,0.51267815,142.36,142.3,3.2133362]
[1768747142819,0.04575363,142.34,142.3,3.2133362]
[1768747143826,0.04575363,142.34,142.3,0.04899111]
[1768747144924,1.81506234,142.34,142.3,0.04899111]
[1768747145623,0.04575363,142.34,142.3,0.04899111]
[1768747146234,1.81506234,142.34,142.3,0.04899111]
[1768747148234,0.04575363,142.34,142.3,0.04899111]
[1768747148429,1.76930871,142.33,142.3,0.04899111]
[1768747148934,0.04575363,142.34,142.3,0.04899111]
[1768747149128,1.76930871,142.33,142.3,0.04899111]
[1768747149534,0.04575363,142.34,142.3,0.04899111]
[1768747149735,1.76930871,142.33,142.3,0.04899111]
[1768747150637,2.28198686,142.33,142.3,0.04899111]
[1768747154637,0.51267815,142.33,142.3,0.04899111]
[1768747154838,1.76930871,142.32,142.3,0.04899111]
[1768747155435,2.28198686,142.33,142.3,0.04899111]
[1768747155635,1.76930871,142.33,142.3,0.04899111]
[1768747157640,0.55843178,142.34,142.3,0.04899111]
[1768747157836,1.76930871,142.33,142.3,0.04899111]
[1768747158343,0.55843178,142.34,142.3,0.04899111]
[1768747158543,2.32774049,142.34,142.3,0.04899111]
[1768747158738,0.55843178,142.34,142.3,0.04899111]
[1768747158929,2.32774049,142.34,142.3,0.04899111]
[1768747159136,0.55843178,142.34,142.3,0.04899111]
[1768747159335,2.28198686,142.33,142.3,0.04899111]
[1768747159532,2.28198686,142.33,142.26,3.16434509]
[1768747159729,1.76930871,142.32,142.26,3.16434509]
[1768747160441,0.51267815,142.33,142.26,3.16434509]
[1768747160643,1.76930871,142.32,142.26,3.16434509]
[1768747160842,0.04983132,142.3,142.26,3.16434509]
[1768747170562,8.6089874,142.34,142.26,3.16434509]
[1768747170963,8.6089874,142.34,142.28,3.30445306]
[1768747171455,2.2831874,142.34,142.28,3.30445306]
[1768747173458,1.76930871,142.34,142.28,3.30445306]
[1768747174651,2.33301872,142.36,142.28,3.30445306]
[1768747175465,2.33301872,142.36,142.31,0.0506317]
[1768747175855,8.65791872,142.36,142.31,0.0506317]
[1768747177667,6.88861001,142.36,142.31,0.0506317]
[1768747177863,1.76930871,142.35,142.31,0.0506317]
[1768747179771,2.33158441,142.35,142.31,0.0506317]
[1768747190874,1.7707356,142.34,142.31,0.0506317]
[1768747197974,2.3330113,142.35,142.31,0.0506317]
[1768747198179,0.5622757,142.35,142.31,0.0506317]
[1768747198378,2.3330113,142.35,142.31,0.0506317]
[1768747199275,0.5622757,142.35,142.31,0.0506317]
[1768747199480,1.7707356,142.36,142.31,3.20421264]
[1768747200478,2.33287366,142.36,142.31,3.20421264]
[1768747201780,241.03137573,142.38,142.31,3.20421264]
[1768747201781,2.33287366,142.37,142.31,3.20421264]
[1768747204680,0.56213806,142.37,142.31,3.20421264]
[1768747204880,2.33287366,142.37,142.31,3.20421264]
[1768747205273,264.54213806,142.39,142.31,3.20421264]
[1768747205480,1.7707356,142.38,142.31,3.20421264]
[1768747205680,264.54213806,142.39,142.31,3.20421264]
[1768747205880,1.7707356,142.38,142.31,3.20421264]
[1768747208385,264.54213806,142.39,142.31,3.20421264]
[1768747208585,1.7707356,142.4,142.33,3.15358094]
[1768747209288,1.7707356,142.4,142.35,0.05295898]
[1768747209488,1.7707356,142.4,142.35,3.20653992]
[1768747210183,0.56213806,142.41,142.35,3.20653992]
[1768747210381,2.33287366,142.41,142.35,3.20653992]
[1768747210981,0.56213806,142.41,142.35,3.20653992]
[1768747211186,2.33287366,142.41,142.35,3.20653992]
[1768747211887,1.7707356,142.39,142.35,3.20653992]
[1768747212092,0.56213806,142.41,142.35,3.20653992]
[1768747212592,1.7707356,142.38,142.35,3.20653992]
[1768747212894,1.7707356,142.39,142.35,3.20653992]
[1768747214894,263.96,142.42,142.35,3.20653992]
[1768747215086,1.7707356,142.39,142.35,3.20653992]
[1768747218788,1.7707356,142.37,142.26,8.71809809]
[1768747218984,1.7707356,142.37,142.29,1.7707356]
[1768747220495,1.7707356,142.37,142.32,0.05379581]
[1768747220889,1.7707356,142.37,142.33,3.15358094]
[1768747239517,3.0684515,142.38,142.33,3.15358094]
[1768747241811,3.0684515,142.38,142.32,0.05379581]
[1768747241812,4.8391871,142.37,142.32,0.05379581]
[1768747242319,4.8391871,142.37,142.31,3.14641866]
[1768747242521,4.8391871,142.37,142.33,0.05265199]
[1768747243019,3.0684515,142.37,142.33,0.05265199]
[1768747243215,4.8391871,142.37,142.33,0.05265199]
[1768747246220,0.04753047,142.36,142.33,0.05265199]
[1768747249122,4.8391871,142.37,142.33,0.05265199]
[1768747249819,3.0684515,142.36,142.33,0.05265199]
[1768747250411,1.7707356,142.35,142.31,3.14641866]
[1768747251818,1.7707356,142.35,142.32,0.05321712]
[1768747252925,4.99440409,142.35,142.32,0.05321712]
[1768747253926,4.99440409,142.35,142.29,3.02140962]
[1768747255722,3.22415564,142.34,142.29,3.02140962]
[1768747256420,0.04635425,142.33,142.29,3.02140962]
[1768747258429,0.04635425,142.33,142.27,3.02140962]
[1768747260515,1.8166027,142.33,142.27,3.02140962]
[1768747260927,0.04635425,142.33,142.27,3.02140962]
[1768747261926,0.04635425,142.33,142.28,3.02140962]
[1768747263624,3.22415564,142.36,142.28,3.02140962]
[1768747266033,3.22415564,142.36,142.29,3.02140962]
[1768747266534,1.77024845,142.35,142.31,0.05149578]
[1768747267337,4.99440409,142.35,142.31,0.05149578]